fUST/lending_fUST_20240809
["ID","MTS","AMOUNT","RATE_DAILY","PERIOD"]
[334519388,1723173042250,-924.028753,0.00020529,2]
[334519390,1723173042259,-924.028753,0.00020529,2]
[334519392,1723173042268,-151.0,0.00020529,2]
[334519394,1723173042278,-206.115534,0.00020529,2]
[334519396,1723173042287,-206.115534,0.00020529,2]
[334519398,1723173042296,-96886.6365911,0.00020598,2]
[334519400,1723173042305,-695.43695,0.00020599,2]
[334519402,1723173042314,-695.43695,0.00020599,2]
[334519404,1723173042324,-924.028753,0.00020599,2]
[334519407,1723173042335,-924.028753,0.00020599,2]
[334519409,1723173042345,-151.0,0.00020599,2]
[334519411,1723173042355,-151.0,0.00020599,2]
[334519413,1723173042364,-206.115534,0.00020599,2]
[334519415,1723173042373,-206.115534,0.00020599,2]
[334519417,1723173042383,-174.351376,0.000206,4]
[334519419,1723173042392,-163.905472,0.00020619,2]
[334519421,1723173042403,-151.0,0.00020619,2]
[334519423,1723173042413,-397.872742,0.00020619,2]
[334519425,1723173042422,-397.872742,0.00020619,2]
[334519427,1723173042432,-151.0,0.00020619,2]
[334519429,1723173042442,-311.467304,0.00020619,2]
[334519431,1723173042451,-437.233747,0.00020619,2]
[334519433,1723173042461,-311.467304,0.00020619,2]
[334519435,1723173042471,-437.233747,0.00020619,2]
[334519437,1723173042481,-2000.0,0.00020628,2]
[334519439,1723173042490,-1285.11282224,0.00020628,2]
[334519441,1723173042500,-121582.34440862,0.00020629,2]
[334519443,1723173042509,-151.0,0.00020629,2]
[334519446,1723173042519,-153.846739,0.00020629,2]
[334519448,1723173042528,-180.064858,0.00020629,2]
[334519450,1723173042537,-151.0,0.00020629,2]
[334519452,1723173042547,-285.430381,0.00020629,2]
[334519454,1723173042556,-285.430381,0.00020629,2]
[334519456,1723173042565,-151.0,0.00020629,2]
[334519458,1723173042575,-151.0,0.00020629,2]
[334519460,1723173042584,-154.227697,0.00020629,2]
[334519462,1723173042593,-162.188838,0.00020629,2]
[334519464,1723173042602,-162.188838,0.00020629,2]
[334519466,1723173042611,-151.507146,0.00020629,2]
[334519468,1723173042621,-151.0,0.00020629,2]
[334519470,1723173042630,-349.873837,0.00020629,2]
[334519472,1723173042639,-349.873837,0.00020629,2]
[334519474,1723173042650,-151.0,0.00020629,2]
[334519476,1723173042660,-627.971317,0.00020629,2]
[334519478,1723173042669,-627.971317,0.00020629,2]
[334519480,1723173042678,-151.0,0.00020629,2]
[334519482,1723173042687,-151.0,0.00020629,2]
[334519484,1723173042696,-152.761347,0.00020629,2]
[334519486,1723173042706,-397.872742,0.00020629,2]
[334519488,1723173042718,-397.872742,0.00020629,2]
[334519491,1723173042728,-151.550525,0.00020629,2]
[334519493,1723173042738,-311.467304,0.00020629,2]
[334519495,1723173042747,-437.233747,0.00020629,2]
[334519497,1723173042757,-311.467304,0.00020629,2]
[334519499,1723173042767,-437.233747,0.00020629,2]
[334519501,1723173042777,-695.43695,0.00020629,2]
[334519503,1723173042787,-695.43695,0.00020629,2]
[334519505,1723173042795,-924.028753,0.00020629,2]
[334519507,1723173042805,-924.028753,0.00020629,2]
[334519509,1723173042814,-151.0,0.00020629,2]
[334519511,1723173042823,-151.0,0.00020629,2]
[334519513,1723173042833,-206.115534,0.00020629,2]
[334519515,1723173042842,-206.115534,0.00020629,2]
[334519517,1723173042851,-155.2991435,0.00020721,2]
[334519519,1723173042860,-201.72346954,0.00020721,2]
[334519521,1723173042870,-568.74678004,0.00020721,2]
[334519523,1723173042879,-154.79103211,0.00020721,2]
[334519525,1723173042889,-155.95262199,0.00020721,2]
[334519527,1723173042898,-397.872742,0.00020821,2]
[334519529,1723173042907,-397.872742,0.00020821,2]
[334519531,1723173042916,-311.467304,0.00020821,2]
[334519533,1723173042926,-437.233747,0.00020821,2]
[334519535,1723173042935,-311.467304,0.00020821,2]
[334519537,1723173042945,-437.233747,0.00020821,2]
[334519539,1723173042954,-695.43695,0.00020821,2]
[334519541,1723173042964,-695.43695,0.00020821,2]
[334519543,1723173042973,-924.028753,0.00020821,2]
[334519545,1723173042982,-924.028753,0.00020821,2]
[334519547,1723173042991,-151.0,0.00020821,2]
[334519549,1723173043000,-206.115534,0.00020821,2]
[334519551,1723173043010,-206.115534,0.00020821,2]
[334519553,1723173043020,-205.0734532,0.00020821,2]
[334519555,1723173043029,-155.09611195,0.00020821,2]
[334519557,1723173043039,-297.15758386,0.00021,2]
[334519559,1723173043048,-150.112233,0.000212,2]
[334519562,1723173043057,-301.1738371,0.00021532,2]
[334519564,1723173043066,-301.1738371,0.00021532,2]
[334519566,1723173043076,-151.0,0.00021561,2]
[334519568,1723173043086,-157.6377812,0.00021632,2]
[334519570,1723173043096,-504.22103723,0.00021658,2]
[334519572,1723173043108,-150.112233,0.000217,2]
[334519574,1723173043117,-314.09240613,0.00021916,2]
[334519576,1723173043126,-151.0,0.00021918,2]
[334519578,1723173043135,-151.0,0.00021918,2]
[334519580,1723173043146,-155.296969,0.00021918,2]
[334519582,1723173043158,-292.0,0.00022,2]
[334519584,1723173043167,-174.0,0.00022,2]
[334519586,1723173043178,-292.0,0.00022192,2]
[334519588,1723173043189,-823.0,0.0002228,2]
[334519590,1723173043198,-150.112233,0.000223,2]
[334519592,1723173043207,-3045.6435552,0.00022378,2]
[334519594,1723173043216,-151.0,0.00022593,7]
[334519596,1723173043226,-151.0,0.00022593,7]
[334519598,1723173043235,-151.0,0.00022593,2]
[334519600,1723173043245,-151.0,0.00022593,7]
[334519603,1723173043254,-151.0,0.00022593,7]
[334519605,1723173043264,-285.430381,0.00022593,7]
[334519607,1723173043274,-285.430381,0.00022593,7]
[334519609,1723173043285,-151.0,0.00022593,7]
[334519612,1723173043295,-620.05351313,0.0002268,2]
[334519614,1723173043304,-150.112233,0.000228,4]
[334519617,1723173043313,-1142.657,0.00023,2]
[334519619,1723173043323,-1142.657,0.00023,2]
[334519622,1723173043333,-1142.657,0.00023,2]
[334519625,1723173043343,-1142.657,0.00023,2]
[334519628,1723173043352,-1142.658,0.00023,2]
[334519631,1723173043360,-292.0,0.00023014,2]
[334519634,1723173043370,-588.994205,0.00023372,2]
[334519637,1723173043379,-294.5666805,0.00023372,2]
[334519640,1723173043389,-150.112233,0.000234,3]
[334519643,1723173043398,-1961.102026,0.00023449,2]
[334519646,1723173043414,-160.0,0.00023723,3]
[334519648,1723173043423,-620.00267566,0.00023814,2]
[334519650,1723173043435,-162.188838,0.00023814,7]
[334519652,1723173043446,-162.188838,0.00023814,7]
[334519654,1723173043456,-151.0,0.00023814,7]
[334519656,1723173043465,-349.873837,0.00023814,7]
[334519661,1723173043475,-349.873837,0.00023814,7]
[334519667,1723173043485,-177.502914,0.00023814,7]
[334519673,1723173043494,-627.971317,0.00023814,7]
[334519679,1723173043503,-627.971317,0.00023814,7]
[334519684,1723173043513,-151.0,0.00023814,2]
[334519688,1723173043523,-151.0,0.00023814,2]
[334519691,1723173043532,-153.0,0.00023841,2]
[334519694,1723173043542,-150.112233,0.000239,5]
[334519696,1723173043551,-153.0,0.00023941,2]
[334519698,1723173043561,-153.0,0.00023978,2]
[334519700,1723173043570,-207.1717265,0.00023978,2]
[334519702,1723173043579,-588.3965698,0.00023978,2]
[334519705,1723173043589,-4351.71715984,0.00024,30]
[334519707,1723173043599,-296.227778,0.00024,7]
[334519709,1723173043608,-155.448318,0.00024,7]
[334519711,1723173043617,-169.087658,0.00024,2]
[334519712,1723173043626,-151.0,0.00024,7]
[334519713,1723173043635,-212.8110363,0.00024078,2]
[334519714,1723173043644,-153.0,0.00024078,2]
[334519715,1723173043655,-294.4971025,0.00024078,2]
[334519717,1723173043665,-207.1717265,0.00024078,2]
[334519719,1723173043675,-153.0,0.00024078,2]
[334519721,1723173043684,-153.0,0.00024078,2]
[334519723,1723173043694,-153.0,0.00024078,2]
[334519725,1723173043703,-5224.43771305,0.0002415,2]
[334519727,1723173043712,-299.0,0.00024164,2]
[334519729,1723173043721,-160.0,0.00024174,4]
[334519731,1723173043731,-588.646315,0.00024194,2]
[334519733,1723173043740,-588.994205,0.00024194,2]
[334519736,1723173043750,-595.1170666,0.00024194,2]
[334519739,1723173043759,-153.0,0.00024194,2]
[334519742,1723173043768,-232.4706765,0.00024194,2]
[334519745,1723173043778,-294.4971025,0.00024194,2]
[334519748,1723173043787,-207.2250634,0.00024194,2]
[334519750,1723173043797,-294.4971025,0.00024194,2]
[334519753,1723173043806,-294.4971025,0.00024194,2]
[334519755,1723173043815,-294.4971025,0.00024194,2]
[334519757,1723173043825,-245.18,0.000242,7]
[334519759,1723173043834,-641.03,0.000242,14]
[334519761,1723173043844,-7065.92,0.000242,14]
[334519763,1723173043855,-1541.183,0.00024223,2]
[334519765,1723173043864,-3045.6435552,0.00024227,2]
[334519767,1723173043873,-150.52070897,0.00024309,2]
[334519769,1723173043882,-150.112233,0.000245,5]
[334519771,1723173043892,-306.0,0.00024575,2]
[334519773,1723173043904,-5224.43771306,0.00024577,2]
[334519775,1723173043919,-160.0,0.00024626,5]
[334519777,1723173043928,-153.550396,0.00024658,7]
[334519779,1723173043937,-151.0,0.00024747,7]
[334519781,1723173043947,-153.667393,0.00024747,7]
[334519783,1723173043956,-151.0,0.00024747,7]
[334519785,1723173043965,-200.87626,0.00024747,7]
[334519787,1723173043974,-152.699681,0.00024747,7]
[334519789,1723173043983,-151.0,0.00024747,7]
[334519791,1723173043993,-151.0,0.00024747,7]
[334519793,1723173044002,-151.0,0.00024747,7]
[334519795,1723173044012,-151.0,0.00024758,7]
[334519797,1723173044021,-151.0,0.00024758,7]
[334519799,1723173044032,-151.0,0.00024758,7]
[334519801,1723173044041,-183.313669,0.00024758,7]
[334519803,1723173044051,-285.430381,0.00024758,7]
[334519805,1723173044062,-285.430381,0.00024758,7]
[334519807,1723173044072,-151.0,0.00024758,7]
[334519809,1723173044082,-588.994205,0.00024795,2]
[334519811,1723173044091,-150.112233,0.000248,4]
[334519813,1723173044101,-151.0,0.00024838,7]
[334519814,1723173044116,-10493.07332189,0.00024848,2]
[334519816,1723173044125,-1626.92608275,0.00024848,2]
[334519818,1723173044134,-154.79103211,0.00024848,2]
[334519820,1723173044143,-151.0,0.00024848,7]
[334519822,1723173044153,-162.188838,0.00024848,7]
[334519824,1723173044163,-162.188838,0.00024848,7]
[334519826,1723173044174,-397.872742,0.00024848,7]
[334519828,1723173044185,-397.872742,0.00024848,7]
[334519830,1723173044194,-311.467304,0.00024848,7]
[334519832,1723173044203,-437.233747,0.00024848,7]
[334519833,1723173044212,-311.467304,0.00024848,7]
[334519835,1723173044221,-437.233747,0.00024848,7]
[334519838,1723173044230,-695.43695,0.00024848,7]
[334519841,1723173044240,-695.43695,0.00024848,7]
[334519844,1723173044249,-924.028753,0.00024848,7]
[334519847,1723173044258,-924.028753,0.00024848,7]
[334519850,1723173044268,-278.235169,0.00024848,7]
[334519853,1723173044277,-1000.0,0.00024848,7]
[334519856,1723173044286,-1000.0,0.00024848,7]
[334519858,1723173044295,-1000.0,0.00024848,7]
[334519860,1723173044305,-455.542435,0.00024848,7]
[334519862,1723173044314,-206.115534,0.00024848,7]
[334519864,1723173044323,-206.115534,0.00024848,7]
[334519865,1723173044333,-153.143073,0.00024858,7]
[334519867,1723173044342,-151.0,0.00024858,7]
[334519869,1723173044351,-151.0,0.00024867,7]
[334519871,1723173044361,-349.873837,0.00024867,7]
[334519873,1723173044370,-349.873837,0.00024867,7]
[334519875,1723173044379,-627.971317,0.00024867,7]
[334519877,1723173044390,-627.971317,0.00024867,7]
[334519879,1723173044402,-151.0,0.00024867,2]
[334519881,1723173044411,-151.0,0.00024867,2]
[334519883,1723173044421,-153.311632,0.00024868,7]
[334519885,1723173044429,-151.0,0.00024868,7]
[334519887,1723173044440,-152.340694,0.00024868,7]
[334519889,1723173044449,-151.0,0.00024868,7]
[334519891,1723173044458,-285.430381,0.00024868,7]
[334519893,1723173044467,-285.430381,0.00024868,7]
[334519895,1723173044477,-154.216759,0.00024868,7]
[334519897,1723173044486,-162.188838,0.00024868,7]
[334519899,1723173044496,-162.188838,0.00024868,7]
[334519901,1723173044506,-151.0,0.00024868,7]
[334519904,1723173044516,-349.873837,0.00024868,7]
[334519906,1723173044527,-349.873837,0.00024868,7]
[334519908,1723173044537,-627.971317,0.00024868,7]
[334519910,1723173044547,-627.971317,0.00024868,7]
[334519912,1723173044559,-151.0,0.00024868,2]
[334519914,1723173044570,-151.0,0.00024868,2]
[334519916,1723173044579,-397.872742,0.00024868,7]
[334519918,1723173044589,-397.872742,0.00024868,7]
[334519920,1723173044598,-311.467304,0.00024868,7]
[334519922,1723173044607,-437.233747,0.00024868,7]
[334519924,1723173044617,-311.467304,0.00024868,7]
[334519926,1723173044626,-437.233747,0.00024868,7]
[334519928,1723173044635,-695.43695,0.00024868,7]
[334519930,1723173044645,-695.43695,0.00024868,7]
[334519932,1723173044654,-924.028753,0.00024868,7]
[334519934,1723173044663,-924.028753,0.00024868,7]
[334519935,1723173044672,-151.0,0.00024868,7]
[334519937,1723173044682,-206.115534,0.00024868,7]
[334519939,1723173044693,-206.115534,0.00024868,7]
[334519941,1723173044705,-1502.94121083,0.00024868,2]
[334519944,1723173044722,-35625.16434409,0.00024868,2]
[334519946,1723173044735,-1609.04805411,0.00024868,2]
[334519949,1723173044746,-22919.35,0.00024868,2]
[334519951,1723173044758,-1050.82,0.00024868,2]
[334519953,1723173044771,-44943.12354763,0.00024868,2]
[334519955,1723173044780,-52590.75789266,0.000249,2]
[334519966,1723173044877,356.57697925,0.00014545,2]
[334519974,1723173044940,-268.20199972,0.00018945,2]
[334519990,1723173045096,-495.65667566,0.00018945,2]
[334519993,1723173045112,-6242.03965169,0.00018945,2]
[334519995,1723173045122,-160.65571382,0.00018989,2]
[334519997,1723173045131,-932.72964545,0.00018989,2]
[334519999,1723173045141,-268.9866789,0.00018989,2]
[334520001,1723173045151,-319.90937201,0.00018999,2]
[334520002,1723173045161,-221.2555674,0.00019046,2]
[334520004,1723173045170,-20263.9527172,0.000249,2]
[334520007,1723173045184,-237.47013587,0.000249,2]
[334520009,1723173045194,-150.112233,0.000249,4]
[334520011,1723173045203,-150.112233,0.000249,5]
[334520013,1723173045213,-150.112233,0.000249,3]
[334520015,1723173045223,-222.490471,0.000249,4]
[334520017,1723173045233,-150.112233,0.000249,4]
[334520019,1723173045243,-150.112233,0.000249,4]
[334520021,1723173045253,-150.112233,0.000249,2]
[334520023,1723173045263,-150.112233,0.000249,5]
[334520024,1723173045273,-150.112233,0.000249,4]
[334520026,1723173045284,-150.112233,0.000249,4]
[334520028,1723173045295,-151.0,0.000249,7]
[334520030,1723173045305,-154.119197,0.000249,7]
[334520032,1723173045316,-285.430381,0.000249,7]
[334520034,1723173045326,-285.430381,0.000249,7]
[334520036,1723173045337,-162.188838,0.000249,7]
[334520038,1723173045347,-162.188838,0.000249,7]
[334520040,1723173045357,-197.357093,0.000249,7]
[334520042,1723173045369,-349.873837,0.000249,7]
[334520044,1723173045379,-349.873837,0.000249,7]
[334520046,1723173045389,-627.971317,0.000249,7]
[334520048,1723173045401,-627.971317,0.000249,7]
[334520050,1723173045412,-151.0,0.000249,2]
[334520052,1723173045421,-151.0,0.000249,2]
[334520054,1723173045431,-397.872742,0.000249,7]
[334520056,1723173045441,-397.872742,0.000249,7]
[334520058,1723173045451,-311.467304,0.000249,7]
[334520060,1723173045461,-437.233747,0.000249,7]
[334520062,1723173045471,-311.467304,0.000249,7]
[334520064,1723173045481,-437.233747,0.000249,7]
[334520066,1723173045490,-695.43695,0.000249,7]
[334520068,1723173045500,-695.43695,0.000249,7]
[334520070,1723173045510,-924.028753,0.000249,7]
[334520072,1723173045519,-924.028753,0.000249,7]
[334520074,1723173045530,-151.0,0.000249,7]
[334520075,1723173045539,-206.115534,0.000249,7]
[334520077,1723173045548,-206.115534,0.000249,7]
[334520079,1723173045558,-533.47,0.00024915,2]
[334520081,1723173045569,-201.0906367,0.00024973,2]
[334520083,1723173045579,-200.0,0.00024973,2]
[334520085,1723173045590,-414.1059301,0.00024986,2]
[334520087,1723173045600,-299.79196722,0.00025,2]
[334520089,1723173045611,-23205.7965051,0.00025,30]
[334520091,1723173045622,-185986.22265735,0.00025,2]
[334520094,1723173045635,-9696.72258963,0.00025,2]
[334520157,1723173046409,-277.8974071,0.00018989,2]
[334520159,1723173046420,-154.79103211,0.00019046,2]
[334520161,1723173046430,-385.44156079,0.00019999,2]
[334520255,1723173047089,-134.49896163,0.00019999,2]
[334520257,1723173047099,-568.74678004,0.0002028,2]
[334520259,1723173047115,-1942.90425833,0.00025,2]
[334520261,1723173047127,-325.33863209,0.00025,2]
[334520264,1723173047140,-273.37336231,0.00025,2]
[334522537,1723173070260,177.11352492,0.00014545,2]
[334525091,1723173097646,273.37336231,9.9e-05,2]
[334526397,1723173112268,845.54174408,0.00012,2]
[334526504,1723173113887,240.87977821,0.00012,2]
[334526883,1723173120996,849.67582147,0.00012,2]
[334526884,1723173122135,959.45560378,0.00012,2]
[334526885,1723173126355,494.39725975,0.00012,2]
[334526886,1723173143676,405.2386029,9.9e-05,2]
[334526887,1723173144947,259.94108036,0.00012,2]
[334526888,1723173151332,236.18099912,0.00012,2]
[334526889,1723173165825,5236.61359711,0.00015,2]
[334526890,1723173168991,155.14957751,0.00014,2]
[334526891,1723173169439,356.57697925,0.00012,2]
[334526892,1723173183095,190.11662855,0.00014545,2]
[334526893,1723173185984,495.6924648,0.00014545,2]
[334526894,1723173200668,2193.11746871,0.0001,2]
[334526895,1723173204341,9114.71769999,0.00014545,2]
[334526896,1723173212370,160.09722391,0.00014545,2]
[334526897,1723173212484,406.39228265,0.00014545,2]
[334526898,1723173215796,338.9605585,0.00012,2]
[334526899,1723173218915,240.63869447,0.00014545,2]
[334526900,1723173221321,154.79103211,0.00014545,2]
[334526901,1723173221534,978.3593946,0.00015,2]
[334526902,1723173225443,157.85964427,0.00014545,2]
[334526903,1723173225992,849.67582147,0.00014545,2]
[334526906,1723173371274,163.445046,0.00014247,2]
[334526907,1723173391143,242.45617359,0.00014545,2]
[334526908,1723173456890,273.37336231,9.9e-05,2]
[334526909,1723173473205,273.37336231,9.9e-05,2]
[334526912,1723173662608,189.3256703,0.00015794,2]
[334526913,1723173663885,155.09611195,0.00012,2]
[334526914,1723173665109,314.09240613,0.00012,2]
[334526915,1723173665442,201.72346954,0.00012,2]
[334526916,1723173671085,154.79103211,0.00012,2]
[334526917,1723173685651,155.95262199,0.00012,2]
[334526918,1723173691685,3000.0,0.00015763,2]
[334526919,1723173709068,155.20644963,0.00012,2]
[334526920,1723173711028,667.6726405,0.00015763,2]
[334526921,1723173720107,314.09240613,0.00012,2]
[334526922,1723173720334,292.4487812,0.0001565,2]
[334526923,1723173720923,912.60929894,0.00015763,2]
[334526924,1723173729241,339.9783498,0.0001576,2]
[334526925,1723173742885,9109.56743467,0.00015954,2]
[334526926,1723173795370,258.2522738,0.00015744,2]
[334526927,1723173807100,302.9332497,0.00015619,2]
[334526928,1723173826669,279.08175551,0.00015954,2]
[334526929,1723173831569,1091.57771247,0.00015954,2]
[334526930,1723173885742,309.23723713,0.00015954,2]
[334526932,1723173928050,194.69086779,0.00015954,2]
[334526935,1723173949244,154.79103211,0.00015954,2]
[334526936,1723173950189,849.67582147,0.00015954,2]
[334526941,1723173984179,163.445046,0.00014247,2]
[334526942,1723173993782,568.89588544,0.00015954,2]
[334526943,1723173994942,250.0,0.00015795,2]
[334526944,1723173995150,250.0,0.00015839,2]
[334526945,1723173995389,250.0,0.00015882,2]
[334526946,1723173995623,250.0,0.00015925,2]
[334526947,1723173995859,250.0,0.00015968,2]
[334526949,1723173999700,968.81111864,0.00015341,2]
[334526950,1723173999725,106.10867336,0.00015341,2]
[334526951,1723174019342,342.11743161,0.00015954,2]
[334526953,1723174035703,196.2176574,0.00015954,2]
[334526954,1723174036697,591.6839571,0.00015383,2]
[334526955,1723174038451,1383.74801699,0.00015954,2]
[334526956,1723174047431,1383.74801699,0.00015954,2]
[334526964,1723174107220,273.37336231,9.9e-05,2]
[334526966,1723174122616,273.37336231,9.9e-05,2]
[334526968,1723174129102,3000.0,0.00015547,2]
[334526969,1723174138014,273.37336231,9.9e-05,2]
[334526971,1723174145474,2380.3340196,0.00015601,2]
[334526972,1723174150165,-250.0,0.00016012,2]
[334526973,1723174150187,-154.79103211,0.00016038,2]
[334526974,1723174150208,-160.25653991,0.00016038,2]
[334526975,1723174150230,-210.84346195,0.00016038,2]
[334526976,1723174150253,-250.0,0.00016055,2]
[334526977,1723174150275,-126.72750782,0.00016098,2]
[334526978,1723174155497,154.79103211,0.00015954,2]
[334526980,1723174168120,156.05197447,0.00012,2]
[334526982,1723174176387,744.59992376,0.00012,2]
[334526983,1723174188399,160.25653991,0.00012,2]
[334526984,1723174216302,165.59010032,0.00014545,2]
[334526985,1723174228098,273.37336231,9.9e-05,2]
[334527032,1723174232164,-123.27249218,0.00016098,2]
[334527033,1723174232175,-250.0,0.00016142,2]
[334527034,1723174232186,-356.6787153,0.00016159,2]
[334527035,1723174232197,-250.0,0.00016185,2]
[334527036,1723174232208,-250.0,0.00016228,2]
[334527037,1723174232218,-250.0,0.00016272,2]
[334527038,1723174232229,-250.0,0.00016315,2]
[334527039,1723174232239,-250.0,0.00016358,2]
[334527040,1723174232249,-250.0,0.00016402,2]
[334527041,1723174232261,-250.0,0.00016445,2]
[334527042,1723174232272,-2663.27669293,0.00016488,2]
[334527043,1723174232282,-250.0,0.00016488,2]
[334527044,1723174232293,-278.08377405,0.000165,2]
[334527045,1723174232303,-250.0,0.00016532,2]
[334527046,1723174232313,-250.0,0.00016575,2]
[334527047,1723174232324,-250.0,0.00016618,2]
[334527048,1723174232334,-300.0,0.00017533,2]
[334527049,1723174232346,-300.0,0.00017533,2]
[334527050,1723174232357,-8528.7075151,0.00017534,2]
[334527051,1723174232371,-586.23740997,0.00017534,2]
[334527052,1723174232385,-510.30323151,0.00017534,2]
[334527126,1723174240379,-24900.0,0.00017619,2]
[334527128,1723174240389,-3715.54168885,0.00017899,2]
[334527130,1723174240398,-729.93792517,0.00017999,2]
[334527132,1723174240407,-14778.68032283,0.00018,2]
[334527133,1723174240416,-1749.31381177,0.00018,2]
[334527134,1723174240426,-403.97923523,0.00018557,2]
[334527135,1723174240435,-500.0,0.00018585,2]
[334527136,1723174240444,-500.0,0.00018585,2]
[334527137,1723174240454,-500.0,0.00018585,2]
[334527138,1723174240463,-500.0,0.00018585,2]
[334527139,1723174240475,-500.0,0.00018585,2]
[334527140,1723174240484,-500.0,0.00018585,2]
[334527141,1723174240493,-176.79987214,0.00018585,2]
[334527142,1723174240503,-423.23846212,0.00018585,2]
[334527143,1723174240511,-500.0,0.00018585,2]
[334527144,1723174240521,-500.0,0.00018585,2]
[334527145,1723174240531,-500.0,0.00018585,2]
[334527146,1723174240540,-500.0,0.00018585,2]
[334527147,1723174240551,-454.04530687,0.00018585,2]
[334527148,1723174240560,-242.87194075,0.00018585,2]
[334527149,1723174240569,-500.0,0.00018585,2]
[334527150,1723174240579,-500.0,0.00018585,2]
[334527151,1723174240588,-500.0,0.00018585,2]
[334527152,1723174240597,-500.0,0.00018585,2]
[334527153,1723174240606,-500.0,0.00018585,2]
[334527154,1723174240615,-14980.64673668,0.00018586,2]
[334527155,1723174240624,-159.33909934,0.00018587,2]
[334527156,1723174240634,-154.79103211,0.00018629,2]
[334527157,1723174240643,-319.90937201,0.00018629,2]
[334527158,1723174240652,-154.79103211,0.00018658,2]
[334527159,1723174240661,-471.11500661,0.00018667,2]
[334527160,1723174240671,-154.79103211,0.00018667,2]
[334527161,1723174240680,-100000.0,0.00018679,2]
[334527162,1723174240691,-324.2,0.00018686,3]
[334527163,1723174240703,-162.1,0.00018686,3]
[334527164,1723174240715,-486.32,0.00018686,3]
[334527165,1723174240724,-154.95892306,0.00018786,2]
[334527166,1723174240733,-154.79103211,0.00018825,2]
[334527167,1723174240742,-154.79103211,0.00018845,2]
[334527168,1723174240751,-14980.64673665,0.00018888,2]
[334527169,1723174240761,-161.06,0.00018911,3]
[334527170,1723174240771,-1296.79,0.00018911,3]
[334527171,1723174240781,-648.39,0.00018911,3]
[334527172,1723174240792,-284.16424637,0.00018921,2]
[334527173,1723174240804,-157.5751207,0.00018945,2]
[334527174,1723174240813,-8834.48131506,0.00019101,2]
[334527175,1723174240823,-244.97937896,0.00019102,2]
[334527176,1723174240832,-420.0,0.0001914,2]
[334527177,1723174240841,-1163.53083147,0.00019147,2]
[334527178,1723174240851,-155.13706053,0.00019147,2]
[334527179,1723174240860,-2140.4177363,0.00019155,2]
[334527180,1723174240869,-1717.1638182,0.00019155,2]
[334527181,1723174240879,-2850.80314621,0.00019155,2]
[334527182,1723174240888,-309.45840154,0.00019155,2]
[334527183,1723174240897,-189.86108484,0.00019155,2]
[334527184,1723174240906,-568.59767464,0.00019155,2]
[334527185,1723174240916,-2163.84623957,0.00019155,2]
[334527186,1723174240929,-11208.30784132,0.00019167,2]
[334527204,1723174241371,-154.79103211,0.00018587,2]
[334527206,1723174241380,-194.58014025,0.00019153,2]
[334527208,1723174241390,-57883.06875558,0.00019167,2]
[334527209,1723174241399,-270.78091765,0.00019167,2]
[334527211,1723174241409,-849.90944882,0.00019167,2]
[334527213,1723174241419,-3089.42924468,0.00019167,2]
[334527215,1723174241429,-154.90143756,0.00019167,2]
[334527217,1723174241439,-35031.14789157,0.00019167,2]
[334527219,1723174241448,-154.79103211,0.00019167,2]
[334527221,1723174241462,-1795.64982845,0.00019167,2]
[334527223,1723174241474,-155.00008055,0.00019167,2]
[334527226,1723174241494,-306.3279645,0.00019167,2]
[334527228,1723174241507,-1992.27585132,0.00019167,2]
[334527230,1723174241519,-1764.53474525,0.00019167,2]
[334527232,1723174241529,-287.94781809,0.00019167,2]